Cogmind - Beta 15 @@@ ROGUE MODE // 2025.05.26 @ 15:38:52 Player: Carpathian Result: Destroyed by S-10 Pest with Light Assault Rifle Performance ------------- Evolutions (1) 500 Regions Visited (3) 600 Robots Destroyed (16) 80 Value Destroyed (280) 280 Prototype IDs (1) 20 Alien Tech Used (0) 0 Bonus (0) 0 TOTAL SCORE: 1480 Bonus ------- None Cogmind --------- Core Integrity 0/400 Matter 290/300 Energy 95/100 System Corruption 0% Temperature Cool (0) Movement Core (150) Ox2 Location -9/Materials Parts ------- > --- POWER (1) -------- (None) > --- PROPULSION (2) --- (None) > --- UTILITY (4) ------ Small Storage Unit > --- WEAPON (2) ------- Katana > --- INVENTORY (8) ---- Light Ion Engine Thief Drone Bay (3/3) Peak State ------------ > --- POWER ------------ Light Ion Engine > --- PROPULSION ------- Light Treads Light Treads > --- UTILITY ---------- Small Storage Unit Thief Drone Bay > --- WEAPON ----------- Small Laser Assault Rifle > --- INVENTORY -------- Light Ion Engine Light Assault Rifle Mining Laser [Rating: 13] Favorites ----------- Power Light Ion Engine Engine Light Ion Engine Propulsion Light Treads Treads Light Treads Utility Small Storage Unit Device Thief Drone Bay Storage Small Storage Unit Protection Propulsion Shielding Weapon Small Laser Energy Gun Small Laser Ballistic Gun Assault Rifle Special Weapon Mining Laser Slashing Weapon Katana Build | -11 -10 -10 -9 ------- Run | Yrd Mat Min Mat Slots Evolved 2 | . . . 2 Power . | . . . . Propulsion . | . . . . Utility 2 | . . . 2 Weapon . | . . . . Parts Attached 11 | 6 . 3 2 Power 1 | 1 . . . Engine 1 | 1 . . . Core . | . . . . Reactor . | . . . . Propulsion 2 | 2 . . . Treads 2 | 2 . . . Leg . | . . . . Wheel . | . . . . Hover . | . . . . Flight . | . . . . Utility 3 | 1 . 2 . Device 1 | . . 1 . Storage 1 | 1 . . . Processor . | . . . . Hackware . | . . . . Protection 1 | . . 1 . Artifact . | . . . . Weapon 5 | 2 . 1 2 Energy Gun 1 | 1 . . . Energy Cannon . | . . . . Ballistic Gun 2 | 1 . 1 . Ballistic Cannon . | . . . . Launcher . | . . . . Special Weapon 1 | . . . 1 Impact Weapon . | . . . . Slashing Weapon 1 | . . . 1 Piercing Weapon . | . . . . Special Melee Weapon . | . . . . Unidentified Prototypes 1 | . . 1 . Parts Lost 7 | . . . 7 Power 1 | . . . 1 Propulsion 2 | . . . 2 Utility 1 | . . . 1 Weapon 3 | . . . 3 Highest Loss Streak 6 | . . . 6 To Critical Strikes 1 | . . . 1 Average Backups 2 | . 1 3 2 Power . | . 1 1 1 Propulsion . | . . . . Utility . | . . . 1 Weapon 1 | . . 1 . Tool/Special . | . . . . Unused Backups 1 | . . . 1 Power 1 | . . . 1 Propulsion . | . . . . Utility . | . . . . Weapon . | . . . . Tool/Special . | . . . . Average Slot Usage (%) 80 | . 85 85 53 Engine 12 | . 14 14 3 Treads 25 | . 28 28 14 Storage 13 | . 14 14 11 Protection 1 | . . . 5 Energy Gun 12 | . 14 14 7 Ballistic Gun 13 | . 14 14 8 Peak Build Rating 13 | 6 6 13 7 Average Rating 5 | 3 6 6 4 On Entrance 4 | . 6 6 7 Naked Turns . | . . . . Heaviest Build 11 | 11 11 11 11 Greatest Support 40 | 40 40 40 40 Greatest Overweight (x) 2 | . . . 2 Average Overweight (x) . | . . . . Largest Inventory Capacity 8 | 8 8 8 8 Average Capacity 7 | 6 8 8 8 Most Carried 4 | 3 3 4 3 Average Carried 2 | 1 1 3 2 Final Capacity 8 | 8 8 8 8 Final Carried 3 | 1 3 3 2 Class Distribution -------------------- 100% | Mutant Dominant Class ---------------- Mutant | -10/Materials Mutant | -10/Mines Mutant | -9/Materials Resources | -11 -10 -10 -9 ----------- Run | Yrd Mat Min Mat Matter Collected 375 | 163 41 35 136 Remotely . | . . . . Salvage Created 339 | . 161 . 178 Parts 35 | . 19 . 16 Haulers Intercepted . | . . . . Recyclers Shooed . | . . . . Parts Field Recycled . | . . . . Retrieved Matter . | . . . . Parts Self-Destructed . | . . . . Prevented . | . . . . Kills | -11 -10 -10 -9 ------- Run | Yrd Mat Min Mat Combat Hostiles Destroyed 16 | . 8 . 8 Melee 2 | . . . 2 Guns 14 | . 8 . 6 Classes Destroyed 4 | . 2 . 2 Swarmer 12 | . 6 . 6 Grunt 2 | . 2 . . Duelist 1 | . . . 1 Sentry 1 | . . . 1 Best Kill Streak 6 | . 3 . 6 Combat Bots Only 6 | . 3 . 6 Max Kills in Single Turn 1 | . 1 . 1 Gunslinging . | . . . . Exploded . | . . . . Melee 1 | . . . 1 Uniques/NPCs Destroyed . | . . . . Combat | -11 -10 -10 -9 -------- Run | Yrd Mat Min Mat Hostile Shots Fired 145 | . 50 . 95 Missed 32 | . 15 . 17 Hits 113 | . 35 . 78 Melee 4 | . . . 4 Projectile 109 | . 35 . 74 Critical Strikes 2 | . . . 2 Damage Taken 1192 | . 311 . 881 Core 468 | . 62 . 406 Absorbed by Shields . | . . . . Redirected to Shielding 49 | . . . 49 Core Remaining (%) 87 | 100 . 75 . Volleys Fired 66 | . 30 . 36 Largest 2 | . 2 . 2 Hottest 100 | . 60 . 100 Shots Fired 114 | . 58 . 56 Gun 111 | . 58 . 53 Cannon . | . . . . Launcher . | . . . . Special 3 | . . . 3 Kinetic 63 | . 30 . 33 Thermal 51 | . 28 . 23 Explosive . | . . . . Electromagnetic . | . . . . Robot Hit Streak 21 | . 7 . 21 Robot Miss Streak 3 | . 3 . 3 Penetration Max . | . . . . Secondary Targets 5 | . 3 . 2 Max Gunslinging Chain 1 | . 1 . 1 Shots Hit Robots 81 | . 35 . 46 Core Hits 27 | . 11 . 16 Critical Kills . | . . . . Critical Parts Destroyed . | . . . . Critical Strikes . | . . . . Melee Attacks 5 | . . . 5 Impact . | . . . . Slashing 5 | . . . 5 Piercing . | . . . . Sneak Attacks . | . . . . Combat Hostiles . | . . . . Follow-up Attacks . | . . . . Damage Inflicted 944 | . 431 . 513 Guns 810 | . 431 . 379 Cannons . | . . . . Explosions . | . . . . Melee 129 | . . . 129 Ramming 5 | . . . 5 Kinetic 433 | . 228 . 205 Thermal 377 | . 203 . 174 Explosive . | . . . . Electromagnetic . | . . . . Impact . | . . . . Slashing 129 | . . . 129 Piercing . | . . . . Highest Corruption . | . . . . Average Corruption . | . . . . Corruption Purged . | . . . . Corruption Blocked . | . . . . Overload Shots . | . . . . Overflow Damage . | . . . . Projectiles . | . . . . Explosions . | . . . . Melee . | . . . . Knockbacks . | . . . . Impact . | . . . . Kinetic . | . . . . Secondary . | . . . . Self-Inflicted Damage 1 | . . . 1 Shots . | . . . . Rammed 4 | . . . 4 Targets Rammed 4 | . . . 4 Kicked . | . . . . Crushed . | . . . . Highest Temperature 48 | . 48 . 28 Average Temperature 18 | . 32 . 6 Received Heat Transfer 243 | . 54 . 189 Siege Activations . | . . . . Martial Activations . | . . . . Shielding Activations . | . . . . Robots Disrupted . | . . . . Combat Hostiles . | . . . . Robots Corrupted . | . . . . Combat Hostiles . | . . . . Parts Fried . | . . . . Impact Corruptions . | . . . . Robots Melted . | . . . . Combat Hostiles . | . . . . Parts Melted . | . . . . Heat Transferred 875 | . 475 . 400 Parts Sabotaged . | . . . . Parts Stolen . | . . . . Parts Stripped . | . . . . Power Chain Reactions . | . . . . Alert | -11 -10 -10 -9 ------- Run | Yrd Mat Min Mat Maximum Alert Level . | . . . . Low Security (%) 100 | 100 100 100 100 Level 1 . | . . . . Level 2 . | . . . . Level 3 . | . . . . Level 4 . | . . . . Level 5 . | . . . . High Security . | . . . . Max Security . | . . . . Peak Influence 135 | . 135 44 117 Initial 44 | . . 44 . Average 19 | . 52 3 43 Influence Increases 442 | . 195 . 247 Destroy 0b10 Robot/C 320 | . 160 . 160 Destroy Leader 60 | . 20 . 40 Destroy Structure 2 | . . . 2 Lose Combat Pursuer 60 | . 15 . 45 Influence Decreases 325 | . 80 115 130 Entered New Map 71 | . . 71 . Time Decay 184 | . 80 44 60 Lost Part 70 | . . . 70 Squads Dispatched 2 | . 2 . . Investigation . | . . . . Extermination . | . . . . Reinforcement 2 | . 2 . . Assault . | . . . . Garrison . | . . . . Intercept . | . . . . Searches Triggered . | . . . . Construction Impeded . | . . . . Haulers Reinforced . | . . . . Active Scanning Responses . | . . . . Cargo Convoy Interrupts . | . . . . Stealth | -11 -10 -10 -9 --------- Run | Yrd Mat Min Mat Distress Signals 1 | . 1 . . Communications Jammed . | . . . . Distress Signals . | . . . . Times Spotted 26 | . 13 . 13 Peak Tracking Total 6 | . 5 . 6 Tactical Retreats 4 | . 1 . 3 Traps | -11 -10 -10 -9 ------- Run | Yrd Mat Min Mat Traps Triggered . | . . . . Indirectly . | . . . . Trap Hack Attempts . | . . . . Triggered . | . . . . Disarmed . | . . . . Reprogrammed . | . . . . Reused . | . . . . Traps Extracted . | . . . . Installed . | . . . . Triggered . | . . . . Machines | -11 -10 -10 -9 ---------- Run | Yrd Mat Min Mat Machines Disabled . | . . . . Max in Single Turn . | . . . . Machines Repaired . | . . . . Machines Dismantled . | . . . . Machines Sabotaged . | . . . . Overloaded Fab Kills . | . . . . Hacking | -11 -10 -10 -9 --------- Run | Yrd Mat Min Mat Machines Accessed 2 | . 1 1 . Terminals 1 | . 1 . . Fabricators . | . . . . Repair Stations . | . . . . Recycling Units . | . . . . Scanalyzers . | . . . . Garrison Access . | . . . . Total Hacks 5 | . 4 1 . Successful 5 | . 4 1 . Failed . | . . . . Catastrophic . | . . . . Database Lockouts . | . . . . Manual . | . . . . Terminals 4 | . 4 . . Fabricators . | . . . . Repair Stations . | . . . . Recycling Units . | . . . . Scanalyzers . | . . . . Garrison Access . | . . . . Terminal Hacks 5 | . 4 1 . Record 3 | . 3 . . Open Door 1 | . . 1 . Zone Layout 1 | . 1 . . Fabricator Hacks . | . . . . Repair Station Hacks . | . . . . Recycling Unit Hacks . | . . . . Scanalyzer . | . . . . Garrison Access Hacks . | . . . . Unauthorized Hacks . | . . . . Terminals . | . . . . Fabricators . | . . . . Repair Stations . | . . . . Recycling Units . | . . . . Scanalyzers . | . . . . Garrison Access . | . . . . Data Cores Recovered . | . . . . Used . | . . . . Hacking Detections . | . . . . Full Trace Events . | . . . . Feedback Events . | . . . . Feedback Blocked . | . . . . Robot Schematics Acquired . | . . . . Robots Built . | . . . . Authchips . | . . . . Time . | . . . . Total Robot Build Rating . | . . . . Part Schematics Acquired . | . . . . Parts Built . | . . . . Authchips . | . . . . Time . | . . . . Total Part Build Rating . | . . . . Parts Repaired . | . . . . Time . | . . . . Parts Recycled . | . . . . Recycled Matter . | . . . . Retrieved Matter . | . . . . Retrieved Components . | . . . . Parts Scanalyzed . | . . . . Part Schematics Acquired . | . . . . Parts Damaged . | . . . . Bothacking | -11 -10 -10 -9 ------------ Run | Yrd Mat Min Mat Used RIF Installer . | . . . . Robots Hacked . | . . . . Non-combat . | . . . . Combat . | . . . . Robot Hacks Applied . | . . . . Relay Couplers Released . | . . . . Fabnet Peak Effective % . | . . . . Robots Rewired . | . . . . Allies Hacked . | . . . . Hacks Repelled . | . . . . Allies | -11 -10 -10 -9 -------- Run | Yrd Mat Min Mat Total Allies . | . . . . Largest Group . | . . . . Highest-Rated Group . | . . . . Highest-Rated Ally . | . . . . Total Orders . | . . . . Ally Attacks . | . . . . Total Damage . | . . . . Kills . | . . . . Allies Corrupted . | . . . . Allies Melted . | . . . . Intel | -11 -10 -10 -9 ------- Run | Yrd Mat Min Mat Active Infowar (turns) . | . . . . Robot Analysis Total . | . . . . Derelict Logs Recovered 1 | . . 1 . Drone Launches . | . . . . Drone Recoveries . | . . . . Exploration | -11 -10 -10 -9 ------------- Run | Yrd Mat Min Mat Turns Passed 1156 | 70 236 683 167 Spaces Moved 573 | 44 81 411 37 Core 17 | 11 . . 6 Treads 556 | 33 81 411 31 Legs . | . . . . Wheels . | . . . . Hover . | . . . . Flight . | . . . . Fastest Speed 50 | 50 160 160 100 Average Speed 157 | 132 160 160 152 Slowest Speed 160 | 160 160 160 160 Overloaded Moves . | . . . . Propulsion Burnouts . | . . . . Robots Hopped . | . . . . Potential Cave-ins . | . . . . Cave-ins Triggered . | . . . . Exploration Rate (%) 28 | 3 20 87 4 Regions Visited 3 Branch Regions 1 Pre-discovered Areas . | . . . . Known Exits Taken . | . . . . Unknown Exits Taken 3 | 1 1 1 . Scrap Searched 1 | . . 1 . Spaces Dug . | . . . . Terrain Destroyed 2 | . . . 2 Melee . | . . . . Projectile 2 | . . . 2 AOE . | . . . . Terrain Rammed . | . . . . Walls Destroyed . | . . . . Machines Disabled . | . . . . Actions | -11 -10 -10 -9 --------- Run | Yrd Mat Min Mat Total 708 | 56 130 437 85 Wait 38 | . 18 20 . Move 570 | 43 80 410 37 Hop . | . . . . Pick Up 12 | 7 2 2 1 Fast Attach . | . . . . Attach 10 | 6 . 2 2 Detach 1 | . . 1 . Swap 1 | . . 1 . Drop 1 | . . 1 . Fire 66 | . 30 . 36 Melee 5 | . . . 5 Ram 4 | . . . 4 Kick . | . . . . Crush . | . . . . Escape Stasis . | . . . . Rewire . | . . . . Trap . | . . . . Miscellaneous . | . . . . Route ------- -11/Scrapyard -10/Materials (discovered 2 exits: *Min x2) -10/Mines -9/Materials History --------- Turn | Location | Event 4 | -11/Scrapyard | Discovered new exit (range 16) 71 | -11/Scrapyard | Entered Materials 71 | -10/Materials | Discovered new exit (range 16) 247 | -10/Materials | Discovered new exit (range 14) 300 | -10/Materials | Build established: Mutant 307 | -10/Materials | Entered Mines 601 | -10/Mines | Found the Drone Emporium 611 | -10/Mines | Found Prototype Device 612 | -10/Mines | Identified Thief Drone Bay 727 | -10/Mines | Found a hidden stash of uninstalled traps 968 | -10/Mines | Discovered new exit (range 8) 990 | -10/Mines | Entered Materials 990 | -9/Materials | Evolved 2 slots: Utility x2 1114 | -9/Materials | Core integrity fell below 50% 1146 | -9/Materials | Core integrity fell below 20% 1157 | -9/Materials | Destroyed by S-10 Pest with Light Assault Rifle Last Messages --------------- 01079_ Propulsion Shielding destroyed. 01080_ L-31 Rogue destroyed. 01081_ Acquired 53 matter. 01085_ S-10 Pest destroyed. 01090_ Lgt. Treads destroyed. 01096_ Sml. Laser destroyed. 01102_ Lgt. Treads destroyed. 01103_ Y-45 Defender destroyed. 01107_ Acquired 50 matter. 01119_ Lgt. Assault Rifle destroyed. 01119_ R-06 Scavenger collects Imp. Aluminum Leg. 01123_ R-06 Scavenger collects Flight Unit. 01134_ Slammed into G-34 Mercenary. 01136_ Acquired 12 matter. 01136_ Slammed into G-34 Mercenary. 01140_ Acquired Katana. 01142_ K-01 Serf collects debris. 01142_ Mining Laser destroyed. 01146_ S-10 Pest destroyed. 01151_ K-01 Serf cleans the Electrolysis Chamber. Map ----- +----------------------------------------------------+ | ?????????????????????????????????????????????????? | | ?????????????????????????????????????????????????? | | ?????????????????????????????????????????????????? | | ?????????????????????????????????????????????????? | | ?????????????????????????????????????????????????? | | ?????????????????????????????????????????????????? | | ?????????????????????????????????????????????????? | | ?????????????????????????????????????????????????? | | ?????????????????????????????????????????????????? | | ???????????????????????? ???????????????????????? | | ???????????????????????? ???????????????????????? | | ???????????????????????? ???????????????????????? | | ???????????????????????? ???????????????????????? | | ???????????????????????? ???????????????????????? | | ???????????????????????? ???????????????????????? | | ???????????????????????? #??????????????????????? | | ???????????????????????? ??????????????????????? | | ???????????????????????? ?????????????????????? | | ???????????????????????? ?????????????????????? | | ???????????????????????? u#?????????????????????? | | ????????????????????????# #?####??????????????""" | | ????????????????????????#=#? ?????????????"""" | | ????????????????????????#=#? #???????????"""" | | ????????????????????????#s# """ #???????????""" | | ????????????????????????#[# """ #???????????? | | ????????????????????????#@g=""" #???????????? | | ????????????????????????#!# #???????????? | | ????????????????????????#=k#################### | | ????????????????????????#[== * % / # | | ????????????????????????##;########## # | | ?????????????????????????###????????# + | | ????????????????????????????????????# # | | ????????????????????????????????????# # | | ????????????????????????????????????# ! # | | ????????????????????????????????????# #### | | ????????????????????????????????????# #??? | | ????????????????????????????????????###########??? | | ?????????????????????????????????????????????????? | | ?????????????????????????????????????????????????? | | ?????????????????????????????????????????????????? | | ?????????????????????????????????????????????????? | | ?????????????????????????????????????????????????? | | ?????????????????????????????????????????????????? | | | | | | | | | | | | | | | +----------------------------------------------------+ Best States ------------- Heat Dissipation 28 Energy Generation 10 Energy Capacity 125 Matter Stores 295 Matter Capacity 300 Sight Range 16 Terrain Scan Density 10 Propulsion Shielding 33 Evasion (%) 40 Recoil Reduction 2 Item Schematics ----------------- None Robot Schematics ------------------ None Fabricated ------------ Nothing Repaired ---------- Nothing Alien Tech Used ----------------- None Achievements -------------- None Challenges ------------ None Game ------ Seed FluxFieldthrustChainsaw Manual? 0 Play Time 00:06:25 Cumulative 27.7 hours Start 2025.05.26 @ 15:33:21 End 2025.05.26 @ 15:38:52 Sessions 1 Manual Loads 0 Difficulty Rogue Special Mode None Game No. 157 Rogue 157 Adventurer 0 Explorer 0 Win Type - Total 0 Types 0/0/0/0/0/0/0/0/0/0 Lore% 6 Gallery% 22 Achievement% 17 Wizard Run 0 Options --------- Layout 0 ASCII 0 Keyboard 0 Movement Arrows Keybinds 0 Fullscreen 2 Font 24/Cog Map View 76x50 Zoom Use 0% Tactical HUD 1 Map Filters NONE Filters NONE Steam 1 RUN: f1b0274b-544b-48cb-aee5-7eb7ac610dad